{"text_format":"3","workbook":"xlsx","n_sheets":1,"sheets":["الميزانية الشخصية الشهرية"],"read":"whole","date_system":"1900"}

{"sheet":"الميزانية الشخصية الشهرية","index":0,"n_rows":64,"n_cols":10,"rows_kept":64,"merged":[[1,1,1,9],[2,1,2,9],[4,1,6,1],[4,2,4,3],[4,6,5,8],[4,9,5,9],[5,2,5,3],[6,2,6,3],[6,6,7,8],[6,9,7,9],[7,1,9,1],[7,2,7,3],[8,2,8,3],[8,6,9,8],[8,9,9,9],[9,2,9,3],[22,6,22,9],[23,1,23,4],[31,6,31,9],[33,1,33,4],[38,6,38,9],[40,1,40,4],[44,6,44,9],[46,1,46,4],[50,6,50,9],[54,1,54,4],[57,6,57,9],[58,6,59,8],[58,9,59,9],[60,6,61,8],[60,9,61,9],[62,6,63,8],[62,9,63,9]]}
[]
[null,"الميزانية الشخصية الشهرية"]
[]
[]
[null,"الدخل الشهري المتوقع","الدخل 1",null,{"v":2500,"d":"ر.س.‏ 2,500"},null,"الرصيد المتوقع (الدخل المتوقع ناقص النفقات)",null,null,{"$f":"E7-J59","v":{"v":940,"d":"ر.س.‏ 940"}}]
[null,null,"الدخل الإضافي",null,{"v":500,"d":"ر.س.‏ 500"}]
[null,null,"إجمالي الدخل الشهري",null,{"$f":"SUM(E5:E6)","v":{"v":3000,"d":"ر.س.‏ 3,000"}},null,"الرصيد الفعلي (الدخل الفعلي ناقص النفقات)",null,null,{"$f":"E10-J61","v":{"v":960,"d":"ر.س.‏ 960"}}]
[null,"الدخل الشهري الفعلي","الدخل 1",null,{"v":2500,"d":"ر.س.‏ 2,500"}]
[null,null,"الدخل الإضافي",null,{"v":500,"d":"ر.س.‏ 500"},null,"الفرق (الدخل الفعلي ناقص المتوقع)",null,null,{"$f":"J7-J5","v":{"v":20,"d":"ر.س.‏ 20"}}]
[null,null,"إجمالي الدخل الشهري",null,{"$f":"SUM(E8:E9)","v":{"v":3000,"d":"ر.س.‏ 3,000"}}]
[]
[null,"السكن","التكلفة المتوقعة","التكلفة الفعلية","الفرق",null,"الترفيه","التكلفة المتوقعة","التكلفة الفعلية","الفرق"]
[null,"قسط الرهن أو الإيجار",{"v":1500,"d":"ر.س.‏ 1,500"},{"v":1400,"d":"ر.س.‏ 1,400"},{"$f":"الجدول_1[[#This Row],[التكلفة المتوقعة]]-الجدول_1[[#This Row],[التكلفة الفعلية]]","v":{"v":100,"d":"ر.س.‏ 100"}},null,"فيديو/DVD",{"v":0,"d":"ر.س.‏ 0"},{"v":50,"d":"ر.س.‏ 50"},{"$f":"الجدول_2[[#This Row],[التكلفة المتوقعة]]-الجدول_2[[#This Row],[التكلفة الفعلية]]","v":{"v":-50,"d":"-ر.س.‏ 50"}}]
[null,"رقم الهاتف",{"v":60,"d":"ر.س.‏ 60"},{"v":100,"d":"ر.س.‏ 100"},{"$f":"الجدول_1[[#This Row],[التكلفة المتوقعة]]-الجدول_1[[#This Row],[التكلفة الفعلية]]","v":{"v":-40,"d":"-ر.س.‏ 40"}},null,"الأقراص المضغوطة",null,null,{"$f":"الجدول_2[[#This Row],[التكلفة المتوقعة]]-الجدول_2[[#This Row],[التكلفة الفعلية]]","v":{"v":0,"d":"ر.س.‏ 0"}}]
[null,"الكهرباء",{"v":50,"d":"ر.س.‏ 50"},{"v":60,"d":"ر.س.‏ 60"},{"$f":"الجدول_1[[#This Row],[التكلفة المتوقعة]]-الجدول_1[[#This Row],[التكلفة الفعلية]]","v":{"v":-10,"d":"-ر.س.‏ 10"}},null,"الأفلام",null,null,{"$f":"الجدول_2[[#This Row],[التكلفة المتوقعة]]-الجدول_2[[#This Row],[التكلفة الفعلية]]","v":{"v":0,"d":"ر.س.‏ 0"}}]
[null,"وقود",{"v":200,"d":"ر.س.‏ 200"},{"v":180,"d":"ر.س.‏ 180"},{"$f":"الجدول_1[[#This Row],[التكلفة المتوقعة]]-الجدول_1[[#This Row],[التكلفة الفعلية]]","v":{"v":20,"d":"ر.س.‏ 20"}},null,"الحفلات الموسيقية",null,null,{"$f":"الجدول_2[[#This Row],[التكلفة المتوقعة]]-الجدول_2[[#This Row],[التكلفة الفعلية]]","v":{"v":0,"d":"ر.س.‏ 0"}}]
[null,"المياه والصرف",null,null,{"$f":"الجدول_1[[#This Row],[التكلفة المتوقعة]]-الجدول_1[[#This Row],[التكلفة الفعلية]]","v":{"v":0,"d":"ر.س.‏ 0"}},null,"الأحداث الرياضية",null,null,{"$f":"الجدول_2[[#This Row],[التكلفة المتوقعة]]-الجدول_2[[#This Row],[التكلفة الفعلية]]","v":{"v":0,"d":"ر.س.‏ 0"}}]
[null,"القنوات الفضائية",null,null,{"$f":"الجدول_1[[#This Row],[التكلفة المتوقعة]]-الجدول_1[[#This Row],[التكلفة الفعلية]]","v":{"v":0,"d":"ر.س.‏ 0"}},null,"المسرح المباشر",null,null,{"$f":"الجدول_2[[#This Row],[التكلفة المتوقعة]]-الجدول_2[[#This Row],[التكلفة الفعلية]]","v":{"v":0,"d":"ر.س.‏ 0"}}]
[null,"إزالة المهملات",null,null,{"$f":"الجدول_1[[#This Row],[التكلفة المتوقعة]]-الجدول_1[[#This Row],[التكلفة الفعلية]]","v":{"v":0,"d":"ر.س.‏ 0"}},null,"غير ذلك",null,null,{"$f":"الجدول_2[[#This Row],[التكلفة المتوقعة]]-الجدول_2[[#This Row],[التكلفة الفعلية]]","v":{"v":0,"d":"ر.س.‏ 0"}}]
[null,"الصيانة أو الإصلاحات",null,null,{"$f":"الجدول_1[[#This Row],[التكلفة المتوقعة]]-الجدول_1[[#This Row],[التكلفة الفعلية]]","v":{"v":0,"d":"ر.س.‏ 0"}},null,"غير ذلك",null,null,{"$f":"الجدول_2[[#This Row],[التكلفة المتوقعة]]-الجدول_2[[#This Row],[التكلفة الفعلية]]","v":{"v":0,"d":"ر.س.‏ 0"}}]
[null,"المستلزمات",null,null,{"$f":"الجدول_1[[#This Row],[التكلفة المتوقعة]]-الجدول_1[[#This Row],[التكلفة الفعلية]]","v":{"v":0,"d":"ر.س.‏ 0"}},null,"غير ذلك",null,null,{"$f":"الجدول_2[[#This Row],[التكلفة المتوقعة]]-الجدول_2[[#This Row],[التكلفة الفعلية]]","v":{"v":0,"d":"ر.س.‏ 0"}}]
[null,"غير ذلك",null,null,{"$f":"الجدول_1[[#This Row],[التكلفة المتوقعة]]-الجدول_1[[#This Row],[التكلفة الفعلية]]","v":{"v":0,"d":"ر.س.‏ 0"}},null,"الإجمالي",{"$f":"SUBTOTAL(109,الجدول_2[التكلفة المتوقعة])","v":{"v":0,"d":"ر.س.‏ 0"}},{"$f":"SUBTOTAL(109,الجدول_2[التكلفة الفعلية])","v":{"v":50,"d":"ر.س.‏ 50"}},{"$f":"SUBTOTAL(109,الجدول_2[الفرق])","v":{"v":-50,"d":"-ر.س.‏ 50"}}]
[null,"الإجمالي",{"$f":"SUBTOTAL(109,الجدول_1[التكلفة المتوقعة])","v":{"v":1810,"d":"ر.س.‏ 1,810"}},{"$f":"SUBTOTAL(109,الجدول_1[التكلفة الفعلية])","v":{"v":1740,"d":"ر.س.‏ 1,740"}},{"$f":"SUBTOTAL(109,الجدول_1[الفرق])","v":{"v":70,"d":"ر.س.‏ 70"}}]
[{"$nulls":6},"القروض","التكلفة المتوقعة","التكلفة الفعلية","الفرق"]
[null,"وسيلة النقل","التكلفة المتوقعة","التكلفة الفعلية","الفرق",null,"شخصية",null,null,{"$f":"الجدول_8[[#This Row],[التكلفة المتوقعة]]-الجدول_8[[#This Row],[التكلفة الفعلية]]","v":{"v":0,"d":"ر.س.‏ 0"}}]
[null,"مدفوعات السيارة",{"v":250,"d":"ر.س.‏ 250"},{"v":250,"d":"ر.س.‏ 250"},{"$f":"الجدول_3[[#This Row],[التكلفة المتوقعة]]-الجدول_3[[#This Row],[التكلفة الفعلية]]","v":{"v":0,"d":"ر.س.‏ 0"}},null,"طالب",null,null,{"$f":"الجدول_8[[#This Row],[التكلفة المتوقعة]]-الجدول_8[[#This Row],[التكلفة الفعلية]]","v":{"v":0,"d":"ر.س.‏ 0"}}]
[null,"أجرة الحافلة/التاكسي",null,null,{"$f":"الجدول_3[[#This Row],[التكلفة المتوقعة]]-الجدول_3[[#This Row],[التكلفة الفعلية]]","v":{"v":0,"d":"ر.س.‏ 0"}},null,"بطاقة الائتمان",null,null,{"$f":"الجدول_8[[#This Row],[التكلفة المتوقعة]]-الجدول_8[[#This Row],[التكلفة الفعلية]]","v":{"v":0,"d":"ر.س.‏ 0"}}]
[null,"التأمين",null,null,{"$f":"الجدول_3[[#This Row],[التكلفة المتوقعة]]-الجدول_3[[#This Row],[التكلفة الفعلية]]","v":{"v":0,"d":"ر.س.‏ 0"}},null,"بطاقة الائتمان",null,null,{"$f":"الجدول_8[[#This Row],[التكلفة المتوقعة]]-الجدول_8[[#This Row],[التكلفة الفعلية]]","v":{"v":0,"d":"ر.س.‏ 0"}}]
[null,"الترخيص",null,null,{"$f":"الجدول_3[[#This Row],[التكلفة المتوقعة]]-الجدول_3[[#This Row],[التكلفة الفعلية]]","v":{"v":0,"d":"ر.س.‏ 0"}},null,"بطاقة الائتمان",null,null,{"$f":"الجدول_8[[#This Row],[التكلفة المتوقعة]]-الجدول_8[[#This Row],[التكلفة الفعلية]]","v":{"v":0,"d":"ر.س.‏ 0"}}]
[null,"الوقود",null,null,{"$f":"الجدول_3[[#This Row],[التكلفة المتوقعة]]-الجدول_3[[#This Row],[التكلفة الفعلية]]","v":{"v":0,"d":"ر.س.‏ 0"}},null,"غير ذلك",null,null,{"$f":"الجدول_8[[#This Row],[التكلفة المتوقعة]]-الجدول_8[[#This Row],[التكلفة الفعلية]]","v":{"v":0,"d":"ر.س.‏ 0"}}]
[null,"الصيانة",null,null,{"$f":"الجدول_3[[#This Row],[التكلفة المتوقعة]]-الجدول_3[[#This Row],[التكلفة الفعلية]]","v":{"v":0,"d":"ر.س.‏ 0"}},null,"الإجمالي",{"$f":"SUBTOTAL(109,الجدول_8[التكلفة المتوقعة])","v":{"v":0,"d":"ر.س.‏ 0"}},{"$f":"SUBTOTAL(109,الجدول_8[التكلفة الفعلية])","v":{"v":0,"d":"ر.س.‏ 0"}},{"$f":"SUBTOTAL(109,الجدول_8[الفرق])","v":{"v":0,"d":"ر.س.‏ 0"}}]
[null,"غير ذلك",null,null,{"$f":"الجدول_3[[#This Row],[التكلفة المتوقعة]]-الجدول_3[[#This Row],[التكلفة الفعلية]]","v":{"v":0,"d":"ر.س.‏ 0"}}]
[null,"الإجمالي",{"$f":"SUBTOTAL(109,الجدول_3[التكلفة المتوقعة])","v":{"v":250,"d":"ر.س.‏ 250"}},{"$f":"SUBTOTAL(109,الجدول_3[التكلفة الفعلية])","v":{"v":250,"d":"ر.س.‏ 250"}},{"$f":"SUBTOTAL(109,الجدول_3[الفرق])","v":{"v":0,"d":"ر.س.‏ 0"}},null,"الضرائب","التكلفة المتوقعة","التكلفة الفعلية","الفرق"]
[{"$nulls":6},"فيدرالي",null,null,{"$f":"الجدول_9[[#This Row],[التكلفة المتوقعة]]-الجدول_9[[#This Row],[التكلفة الفعلية]]","v":{"v":0,"d":"ر.س.‏ 0"}}]
[null,"التأمين","التكلفة المتوقعة","التكلفة الفعلية","الفرق",null,"الولاية",null,null,{"$f":"الجدول_9[[#This Row],[التكلفة المتوقعة]]-الجدول_9[[#This Row],[التكلفة الفعلية]]","v":{"v":0,"d":"ر.س.‏ 0"}}]
[null,"المنزل",null,null,{"$f":"الجدول_4[[#This Row],[التكلفة المتوقعة]]-الجدول_4[[#This Row],[التكلفة الفعلية]]","v":{"v":0,"d":"ر.س.‏ 0"}},null,"المحلية",null,null,{"$f":"الجدول_9[[#This Row],[التكلفة المتوقعة]]-الجدول_9[[#This Row],[التكلفة الفعلية]]","v":{"v":0,"d":"ر.س.‏ 0"}}]
[null,"صحي",null,null,{"$f":"الجدول_4[[#This Row],[التكلفة المتوقعة]]-الجدول_4[[#This Row],[التكلفة الفعلية]]","v":{"v":0,"d":"ر.س.‏ 0"}},null,"غير ذلك",null,null,{"$f":"الجدول_9[[#This Row],[التكلفة المتوقعة]]-الجدول_9[[#This Row],[التكلفة الفعلية]]","v":{"v":0,"d":"ر.س.‏ 0"}}]
[null,"حياة",null,null,{"$f":"الجدول_4[[#This Row],[التكلفة المتوقعة]]-الجدول_4[[#This Row],[التكلفة الفعلية]]","v":{"v":0,"d":"ر.س.‏ 0"}},null,"الإجمالي",{"$f":"SUBTOTAL(109,الجدول_9[التكلفة المتوقعة])","v":{"v":0,"d":"ر.س.‏ 0"}},{"$f":"SUBTOTAL(109,الجدول_9[التكلفة الفعلية])","v":{"v":0,"d":"ر.س.‏ 0"}},{"$f":"SUBTOTAL(109,الجدول_9[الفرق])","v":{"v":0,"d":"ر.س.‏ 0"}}]
[null,"غير ذلك",null,null,{"$f":"الجدول_4[[#This Row],[التكلفة المتوقعة]]-الجدول_4[[#This Row],[التكلفة الفعلية]]","v":{"v":0,"d":"ر.س.‏ 0"}}]
[null,"الإجمالي",{"$f":"SUBTOTAL(109,الجدول_4[التكلفة المتوقعة])","v":{"v":0,"d":"ر.س.‏ 0"}},{"$f":"SUBTOTAL(109,الجدول_4[التكلفة الفعلية])","v":{"v":0,"d":"ر.س.‏ 0"}},{"$f":"SUBTOTAL(109,الجدول_4[الفرق])","v":{"v":0,"d":"ر.س.‏ 0"}},null,"المدخرات أو الاستثمارات","التكلفة المتوقعة","التكلفة الفعلية","الفرق"]
[{"$nulls":6},"حساب التقاعد",null,null,{"$f":"الجدول_10[[#This Row],[التكلفة المتوقعة]]-الجدول_10[[#This Row],[التكلفة الفعلية]]","v":{"v":0,"d":"ر.س.‏ 0"}}]
[null,"الطعام","التكلفة المتوقعة","التكلفة الفعلية","الفرق",null,"حساب الاستثمار",null,null,{"$f":"الجدول_10[[#This Row],[التكلفة المتوقعة]]-الجدول_10[[#This Row],[التكلفة الفعلية]]","v":{"v":0,"d":"ر.س.‏ 0"}}]
[null,"البقالة",null,null,{"$f":"الجدول_5[[#This Row],[التكلفة المتوقعة]]-الجدول_5[[#This Row],[التكلفة الفعلية]]","v":{"v":0,"d":"ر.س.‏ 0"}},null,"غير ذلك",null,null,{"$f":"الجدول_10[[#This Row],[التكلفة المتوقعة]]-الجدول_10[[#This Row],[التكلفة الفعلية]]","v":{"v":0,"d":"ر.س.‏ 0"}}]
[null,"الطعام خارج المنزل",null,null,{"$f":"الجدول_5[[#This Row],[التكلفة المتوقعة]]-الجدول_5[[#This Row],[التكلفة الفعلية]]","v":{"v":0,"d":"ر.س.‏ 0"}},null,"الإجمالي",{"$f":"SUBTOTAL(109,الجدول_10[التكلفة المتوقعة])","v":{"v":0,"d":"ر.س.‏ 0"}},{"$f":"SUBTOTAL(109,الجدول_10[التكلفة الفعلية])","v":{"v":0,"d":"ر.س.‏ 0"}},{"$f":"SUBTOTAL(109,الجدول_10[الفرق])","v":{"v":0,"d":"ر.س.‏ 0"}}]
[null,"غير ذلك",null,null,{"$f":"الجدول_5[[#This Row],[التكلفة المتوقعة]]-الجدول_5[[#This Row],[التكلفة الفعلية]]","v":{"v":0,"d":"ر.س.‏ 0"}}]
[null,"الإجمالي",{"$f":"SUBTOTAL(109,الجدول_5[التكلفة المتوقعة])","v":{"v":0,"d":"ر.س.‏ 0"}},{"$f":"SUBTOTAL(109,الجدول_5[التكلفة الفعلية])","v":{"v":0,"d":"ر.س.‏ 0"}},{"$f":"SUBTOTAL(109,الجدول_5[الفرق])","v":{"v":0,"d":"ر.س.‏ 0"}},null,"الهدايا والتبرعات","التكلفة المتوقعة","التكلفة الفعلية","الفرق"]
[{"$nulls":6},"عمل خيري 1",null,null,{"$f":"الجدول_11[[#This Row],[التكلفة المتوقعة]]-الجدول_11[[#This Row],[التكلفة الفعلية]]","v":{"v":0,"d":"ر.س.‏ 0"}}]
[null,"الحيوانات الأليفة","التكلفة المتوقعة","التكلفة الفعلية","الفرق",null,"عمل خيري 2",null,null,{"$f":"الجدول_11[[#This Row],[التكلفة المتوقعة]]-الجدول_11[[#This Row],[التكلفة الفعلية]]","v":{"v":0,"d":"ر.س.‏ 0"}}]
[null,"الطعام",null,null,{"$f":"الجدول_6[[#This Row],[التكلفة المتوقعة]]-الجدول_6[[#This Row],[التكلفة الفعلية]]","v":{"v":0,"d":"ر.س.‏ 0"}},null,"عمل خيري 3",null,null,{"$f":"الجدول_11[[#This Row],[التكلفة المتوقعة]]-الجدول_11[[#This Row],[التكلفة الفعلية]]","v":{"v":0,"d":"ر.س.‏ 0"}}]
[null,"المتطلبات الطبية",null,null,{"$f":"الجدول_6[[#This Row],[التكلفة المتوقعة]]-الجدول_6[[#This Row],[التكلفة الفعلية]]","v":{"v":0,"d":"ر.س.‏ 0"}},null,"الإجمالي",{"$f":"SUBTOTAL(109,الجدول_11[التكلفة المتوقعة])","v":{"v":0,"d":"ر.س.‏ 0"}},{"$f":"SUBTOTAL(109,الجدول_11[التكلفة الفعلية])","v":{"v":0,"d":"ر.س.‏ 0"}},{"$f":"SUBTOTAL(109,الجدول_11[الفرق])","v":{"v":0,"d":"ر.س.‏ 0"}}]
[null,"التدليل",null,null,{"$f":"الجدول_6[[#This Row],[التكلفة المتوقعة]]-الجدول_6[[#This Row],[التكلفة الفعلية]]","v":{"v":0,"d":"ر.س.‏ 0"}}]
[null,"الدمى",null,null,{"$f":"الجدول_6[[#This Row],[التكلفة المتوقعة]]-الجدول_6[[#This Row],[التكلفة الفعلية]]","v":{"v":0,"d":"ر.س.‏ 0"}},null,"المتطلبات القانونية","التكلفة المتوقعة","التكلفة الفعلية","الفرق"]
[null,"غير ذلك",null,null,{"$f":"الجدول_6[[#This Row],[التكلفة المتوقعة]]-الجدول_6[[#This Row],[التكلفة الفعلية]]","v":{"v":0,"d":"ر.س.‏ 0"}},null,"محامي",null,null,{"$f":"الجدول_12[[#This Row],[التكلفة المتوقعة]]-الجدول_12[[#This Row],[التكلفة الفعلية]]","v":{"v":0,"d":"ر.س.‏ 0"}}]
[null,"الإجمالي",{"$f":"SUBTOTAL(109,الجدول_6[التكلفة المتوقعة])","v":{"v":0,"d":"ر.س.‏ 0"}},{"$f":"SUBTOTAL(109,الجدول_6[التكلفة الفعلية])","v":{"v":0,"d":"ر.س.‏ 0"}},{"$f":"SUBTOTAL(109,الجدول_6[الفرق])","v":{"v":0,"d":"ر.س.‏ 0"}},null,"نفقة الزوجة",null,null,{"$f":"الجدول_12[[#This Row],[التكلفة المتوقعة]]-الجدول_12[[#This Row],[التكلفة الفعلية]]","v":{"v":0,"d":"ر.س.‏ 0"}}]
[{"$nulls":6},"مدفوعات الرهن أو الدين",null,null,{"$f":"الجدول_12[[#This Row],[التكلفة المتوقعة]]-الجدول_12[[#This Row],[التكلفة الفعلية]]","v":{"v":0,"d":"ر.س.‏ 0"}}]
[null,"الرعاية الشخصية","التكلفة المتوقعة","التكلفة الفعلية","الفرق",null,"غير ذلك",null,null,{"$f":"الجدول_12[[#This Row],[التكلفة المتوقعة]]-الجدول_12[[#This Row],[التكلفة الفعلية]]","v":{"v":0,"d":"ر.س.‏ 0"}}]
[null,"المتطلبات الطبية",null,null,{"$f":"الجدول_7[[#This Row],[التكلفة المتوقعة]]-الجدول_7[[#This Row],[التكلفة الفعلية]]","v":{"v":0,"d":"ر.س.‏ 0"}},null,"الإجمالي",{"$f":"SUBTOTAL(109,الجدول_12[التكلفة المتوقعة])","v":{"v":0,"d":"ر.س.‏ 0"}},{"$f":"SUBTOTAL(109,الجدول_12[التكلفة الفعلية])","v":{"v":0,"d":"ر.س.‏ 0"}},{"$f":"SUBTOTAL(109,الجدول_12[الفرق])","v":{"v":0,"d":"ر.س.‏ 0"}}]
[null,"الشعر/الأظافر",null,null,{"$f":"الجدول_7[[#This Row],[التكلفة المتوقعة]]-الجدول_7[[#This Row],[التكلفة الفعلية]]","v":{"v":0,"d":"ر.س.‏ 0"}}]
[null,"الملابس",null,null,{"$f":"الجدول_7[[#This Row],[التكلفة المتوقعة]]-الجدول_7[[#This Row],[التكلفة الفعلية]]","v":{"v":0,"d":"ر.س.‏ 0"}},null,"إجمالي التكلفة المتوقعة",null,null,{"$f":"SUM(C23,C33,C40,C46,C54,C64,H22,H31,H38,H44,H50,H57)","v":{"v":2060,"d":"ر.س.‏ 2,060"}}]
[null,"التنظيف الجاف",null,null,{"$f":"الجدول_7[[#This Row],[التكلفة المتوقعة]]-الجدول_7[[#This Row],[التكلفة الفعلية]]","v":{"v":0,"d":"ر.س.‏ 0"}}]
[null,"النادي الصحي",null,null,{"$f":"الجدول_7[[#This Row],[التكلفة المتوقعة]]-الجدول_7[[#This Row],[التكلفة الفعلية]]","v":{"v":0,"d":"ر.س.‏ 0"}},null,"إجمالي التكلفة الفعلية",null,null,{"$f":"SUM(D23,D33,D40,D46,D54,D64,I22,I31,I38,I44,I50,I57)","v":{"v":2040,"d":"ر.س.‏ 2,040"}}]
[null,"مستحقات المؤسسة أو رسومها",null,null,{"$f":"الجدول_7[[#This Row],[التكلفة المتوقعة]]-الجدول_7[[#This Row],[التكلفة الفعلية]]","v":{"v":0,"d":"ر.س.‏ 0"}}]
[null,"غير ذلك",null,null,{"$f":"الجدول_7[[#This Row],[التكلفة المتوقعة]]-الجدول_7[[#This Row],[التكلفة الفعلية]]","v":{"v":0,"d":"ر.س.‏ 0"}},null,"إجمالي الفرق",null,null,{"$f":"SUM(E23,E33,E40,E46,E54,E64,J22,J31,J38,J44,J50,J57)","v":{"v":20,"d":"ر.س.‏ 20"}}]
[null,"الإجمالي",{"$f":"SUBTOTAL(109,الجدول_7[التكلفة المتوقعة])","v":{"v":0,"d":"ر.س.‏ 0"}},{"$f":"SUBTOTAL(109,الجدول_7[التكلفة الفعلية])","v":{"v":0,"d":"ر.س.‏ 0"}},{"$f":"SUBTOTAL(109,الجدول_7[الفرق])","v":{"v":0,"d":"ر.س.‏ 0"}}]